bitfinex/quotes_SOLUSD_20250602
["timestamp","ask_amount","ask_price","bid_price","bid_amount"]
[1748824903461,264.80756013,157.76,157.71,20.50831214]
[1748824903854,101.74,157.76,157.72,14.16756013]
[1748824904757,10.46,157.76,157.74,14.16756013]
[1748824905437,10.46,157.8,157.75,20.50670434]
[1748824905637,24.62756013,157.8,157.75,20.50670434]
[1748824910444,14.16756013,157.78,157.75,6.33914421]
[1748824911243,14.16756013,157.76,157.69,6.34155621]
[1748824911445,14.16756013,157.75,157.7,53.62756013]
[1748824911663,14.16756013,157.75,157.71,6.34075201]
[1748824912284,14.16756013,157.76,157.71,20.50831214]
[1748824913756,14.16756013,157.77,157.72,14.16756013]
[1748824914751,14.16756013,157.77,157.73,6.33994801]
[1748824916373,14.16756013,157.78,157.73,20.50750814]
[1748824917675,14.16756013,157.77,157.73,6.33994801]
[1748824918674,14.16756013,157.76,157.73,6.33994801]
[1748824918871,14.16756013,157.76,157.7,65.46]
[1748824918872,14.16756013,157.77,157.72,14.16756013]
[1748824919060,14.16756013,157.75,157.7,79.62756013]
[1748824919460,14.16756013,157.75,157.71,6.34066641]
[1748824919775,14.16756013,157.76,157.71,20.50822654]
[1748824921478,148.9,157.79,157.72,14.16756013]
[1748824921681,14.16756013,157.77,157.72,14.16756013]
[1748824923369,14.16756013,157.77,157.73,6.33994801]
[1748824924784,148.9,157.79,157.73,20.50750814]
[1748824925083,148.9,157.79,157.74,14.16756013]
[1748824925267,163.06756013,157.79,157.74,14.16756013]
[1748824925468,163.06756013,157.79,157.75,6.33914421]
[1748824925670,148.9,157.79,157.75,20.50670434]
[1748824926070,10.46,157.8,157.77,14.16756013]
[1748824927084,10.46,157.8,157.78,14.16756013]
[1748824927588,10.42,157.84,157.79,20.50509736]
[1748824927754,10.42,157.84,157.8,14.16756013]
[1748824927962,10.42,157.84,157.82,14.16756013]
[1748824929393,10.42,157.84,157.81,14.16756013]
[1748824930281,10.42,157.88,157.83,14.16756013]
[1748824930586,10.42,157.88,157.85,14.16756013]
[1748824932188,10.42,157.88,157.86,6.33472697]
[1748824932485,10.42,157.88,157.84,20.50308978]
[1748824932672,10.42,157.88,157.85,14.16756013]
[1748824932877,10.42,157.88,157.84,6.33552965]
[1748824932878,10.42,157.88,157.87,14.16756013]
[1748824933288,40.25604913,157.92,157.87,14.16756013]
[1748824934789,24.58756013,157.92,157.88,6.33392449]
[1748824935971,10.42,157.92,157.9,14.16756013]
[1748824936167,148.9,157.94,157.91,14.16756013]
[1748824936384,10.42,157.96,157.93,14.16756013]
[1748824936584,10.42,158.0,157.94,20.49907842]
[1748824936798,10.42,158.0,157.96,14.16756013]
[1748824936968,10.42,158.0,157.97,14.16756013]
[1748824940681,10.42,158.0,157.96,20.49800247]
[1748824941286,10.42,158.0,157.95,45.75107555]
[1748824941485,14.16756013,157.99,157.95,39.42]
[1748824941787,24.58756013,158.0,157.95,59.91855886]
[1748824941975,10.42,158.0,157.96,14.16756013]
[1748824945370,10.42,158.0,157.96,20.49816248]
[1748824950228,10.42,158.0,157.96,14.16756013]
[1748824950801,30.9167097,158.0,157.95,59.91855022]
[1748824951001,14.16756013,157.96,157.91,14.16756013]
[1748824951234,14.16756013,157.95,157.9,79.54756013]
[1748824951410,14.16756013,157.95,157.9,40.16756013]
[1748824951719,14.16756013,157.92,157.86,6.33472697]
[1748824952023,14.16756013,157.92,157.87,14.16756013]
[1748824953010,14.16756013,157.92,157.87,20.5015528]
[1748824953518,14.16756013,157.91,157.87,20.5015528]
[1748824954314,14.16756013,157.91,157.87,6.33399267]
[1748824957417,14.16756013,157.91,157.84,6.33539416]
[1748824957418,14.16756013,157.88,157.84,6.33539416]
[1748824957601,14.16756013,157.87,157.84,6.33539416]
[1748824958003,14.16756013,157.89,157.84,20.50295429]
[1748824958521,6.2679,157.92,157.87,14.16756013]
[1748824958522,14.16756013,157.92,157.87,14.16756013]
[1748824958696,14.16756013,157.9,157.85,14.16756013]
[1748824959604,6.33198172,157.93,157.86,20.5022871]
[1748824959809,14.16756013,157.91,157.86,20.5022871]
[1748824965122,148.9,157.92,157.86,20.5022871]
[1748824965123,14.16756013,157.9,157.86,6.33472697]
[1748824965327,14.16756013,157.89,157.86,6.33472697]
[1748824967821,14.16756013,157.91,157.86,20.5022871]
[1748824969028,163.06756013,157.92,157.87,14.16756013]
[1748824969226,14.16756013,157.91,157.86,20.5022871]
[1748824969617,14.16756013,157.9,157.86,6.33472697]
[1748824970720,14.16756013,157.91,157.86,20.5022871]
[1748824971225,14.16756013,157.9,157.86,6.33472697]
[1748824971607,14.16756013,157.87,157.82,53.54756013]
[1748824971817,14.16756013,157.87,157.82,14.16756013]
[1748824972018,14.16756013,157.87,157.82,20.50389266]
[1748824973624,15.79026013,157.87,157.82,20.50389266]
[1748824974026,1.6227,157.87,157.82,20.50389266]
[1748824974223,10.4,157.88,157.84,14.16756013]
[1748824975133,10.4,157.88,157.85,6.33512828]
[1748824975332,10.4,157.88,157.86,14.16756013]
[1748824975539,15.79456013,157.91,157.86,14.16756013]
[1748824976235,15.79456013,157.91,157.85,20.50268841]
[1748824976236,14.16756013,157.9,157.85,20.50268841]
[1748824976434,14.16756013,157.9,157.85,6.33512828]
[1748824976636,14.16756013,157.89,157.85,6.33512828]
[1748824977736,14.16756013,157.87,157.84,6.33545643]
[1748824978935,14.16756013,157.87,157.82,20.50352988]
[1748824979118,14.16756013,157.86,157.82,6.33596975]
[1748824981427,14.16756013,157.86,157.81,32.33673122]
[1748824981428,14.16756013,157.85,157.81,32.33673122]
[1748824981625,14.16756013,157.84,157.81,32.33673122]
[1748824981831,14.16756013,157.84,157.78,73.85383777]
[1748824981832,14.16756013,157.83,157.78,14.16756013]
[1748824982033,14.16756013,157.81,157.77,6.33834062]
[1748824982229,14.16756013,157.8,157.77,6.33834062]
[1748824982742,15.72946013,157.84,157.77,20.50590075]
[1748824982743,14.16756013,157.82,157.77,20.50590075]
[1748824982947,14.16756013,157.82,157.77,36.3517523]
[1748824983140,148.9,157.87,157.81,14.16756013]
[1748824983339,148.9,157.87,157.82,20.50389266]
[1748824983340,163.06756013,157.87,157.82,20.50389266]
[1748824983524,163.06756013,157.87,157.82,6.33633253]
[1748824983729,163.06756013,157.87,157.82,20.50389266]
[1748824984147,14.16756013,157.86,157.82,6.33633253]
[1748824984449,148.9,157.87,157.84,14.16756013]
[1748824984748,10.4,157.88,157.85,40.16756013]
[1748824984929,10.4,157.88,157.87,14.16756013]
[1748824985128,163.06756013,157.91,157.86,14.16756013]
[1748824985438,163.06756013,157.91,157.87,6.33432571]
[1748824985439,14.16756013,157.9,157.87,6.33432571]
[1748824985832,163.06756013,157.91,157.87,6.33432571]
[1748824986527,14.16756013,157.9,157.87,6.33432571]
[1748824987554,163.06756013,157.91,157.86,20.5022871]
[1748824988044,14.16756013,157.9,157.86,6.33472697]
[1748824988249,14.16756013,157.89,157.86,6.33472697]
[1748824989540,14.16756013,157.88,157.85,6.33512828]
[1748824989749,14.16756013,157.89,157.85,6.33512828]
[1748824990356,148.9,157.91,157.85,20.50268841]
[1748824990357,163.06756013,157.91,157.85,20.50268841]
[1748824991456,148.9,157.91,157.87,14.16756013]
[1748824991645,148.9,157.91,157.88,14.16756013]
[1748824991845,148.9,157.91,157.87,30.0033744]
[1748824992735,14.16756013,157.89,157.85,6.33512828]
[1748824993051,148.9,157.91,157.87,40.16756013]
[1748824993949,148.9,157.91,157.88,6.33392449]
[1748824994145,14.16756013,157.89,157.86,6.33463424]
[1748824994463,14.16756013,157.9,157.86,6.33463424]
[1748824994756,163.06756013,157.91,157.86,6.33463424]
[1748824995157,14.16756013,157.9,157.86,6.33463424]
[1748824996642,163.06756013,157.89,157.85,6.3350089]
[1748824996840,14.16756013,157.87,157.83,6.33593106]
[1748824997956,14.16756013,157.86,157.82,6.33620362]
[1748824998458,163.06756013,157.89,157.83,14.16756013]
[1748824998863,14.16756013,157.88,157.83,14.16756013]
[1748824999046,14.16756013,157.87,157.82,20.50376375]
[1748824999751,155.23362846,157.89,157.82,20.50376375]
[1748824999752,14.16756013,157.86,157.82,6.33620362]
[1748825001443,14.16756013,157.85,157.81,6.33658597]
[1748825001740,150.4028,157.86,157.77,6.33834062]
[1748825001943,14.16756013,157.81,157.77,6.33834062]
[1748825002353,14.16756013,157.82,157.77,20.50590075]
[1748825003049,14.16756013,157.79,157.76,6.33863044]
[1748825003454,14.16756013,157.79,157.75,6.33914421]
[1748825004542,24.56756013,157.81,157.76,14.16756013]
[1748825005364,24.56756013,157.81,157.77,6.33834062]
[1748825005843,10.4,157.81,157.77,20.50590075]
[1748825006761,24.56756013,157.81,157.77,6.33834062]
[1748825007556,10.4,157.81,157.77,20.50590075]
[1748825010250,10.4,157.81,157.79,14.16756013]
[1748825010449,148.9,157.82,157.79,14.16756013]
[1748825010852,148.9,157.82,157.78,39.36]
[1748825010853,148.9,157.82,157.78,53.52756013]
[1748825011873,148.9,157.82,157.8,14.16756013]
[1748825012162,148.9,157.82,157.79,6.33753723]
[1748825015248,163.06756013,157.82,157.79,6.33753723]
[1748825016877,163.06756013,157.82,157.77,14.16756013]
[1748825016878,148.9,157.82,157.8,14.16756013]
[1748825018347,163.06756013,157.82,157.77,26.0]
[1748825018552,14.16756013,157.81,157.77,26.0]
[1748825018750,163.06756013,157.82,157.77,40.16756013]
[1748825020079,163.06756013,157.82,157.78,6.33761076]
[1748825020473,148.9,157.82,157.78,20.50517089]
[1748825020685,148.9,157.82,157.8,14.16756013]
[1748825021982,10.4,157.85,157.8,14.16756013]
[1748825022283,148.9,157.86,157.83,14.16756013]
[1748825022877,148.9,157.86,157.82,14.16756013]
[1748825024166,148.9,157.86,157.83,6.33593106]
[1748825024366,148.9,157.86,157.83,20.50349119]
[1748825025768,148.9,157.86,157.83,6.33593106]
[1748825028263,148.9,157.86,157.83,20.50349119]
[1748825029476,148.9,157.86,157.83,6.33593106]
[1748825031493,148.9,157.86,157.84,14.16756013]
[1748825031697,10.38,157.89,157.85,14.16756013]
[1748825031882,10.38,157.89,157.84,26.0]
[1748825031883,10.38,157.89,157.88,6.33392449]
[1748825032192,164.65096013,157.9,157.87,6.33422174]
[1748825032374,14.16756013,157.89,157.84,40.16756013]
[1748825032999,164.65096013,157.9,157.85,6.33512828]
[1748825034502,150.4834,157.9,157.85,6.33512828]
[1748825034707,164.65096013,157.9,157.85,20.50268841]
[1748825036202,150.4834,157.9,157.85,20.50268841]
[1748825036376,164.65096013,157.9,157.85,20.50268841]
[1748825036581,164.65096013,157.9,157.87,14.16756013]
[1748825036582,148.9,157.9,157.87,14.16756013]
[1748825036769,148.9,157.9,157.88,6.33392449]
[1748825036971,14.16756013,157.89,157.82,15.83997332]
[1748825037191,14.16756013,157.88,157.82,56.00753345]
[1748825037395,14.16756013,157.88,157.82,95.34753345]
[1748825037584,14.16756013,157.86,157.81,20.50429417]
[1748825037896,14.16756013,157.84,157.8,6.33699444]
[1748825038100,14.16756013,157.83,157.79,6.33741736]
[1748825039108,14.16756013,157.85,157.8,14.16756013]
[1748825040320,14.16756013,157.85,157.81,6.33673404]
[1748825042117,14.16756013,157.84,157.81,6.33673404]
[1748825042319,14.16756013,157.84,157.78,22.18278615]
[1748825042492,14.16756013,157.83,157.78,36.35034628]
[1748825043286,14.16756013,157.84,157.79,14.16756013]
[1748825044207,14.16756013,157.85,157.79,14.16756013]
[1748825045109,14.16756013,157.84,157.8,6.33713561]
[1748825045701,14.16756013,157.84,157.79,6.33739243]
[1748825045901,14.16756013,157.82,157.78,6.3378028]
[1748825046307,15.79506013,157.83,157.78,20.50536293]
[1748825047116,14.16756013,157.79,157.74,101.69525576]
[1748825047295,14.16756013,157.8,157.75,14.16756013]
[1748825048624,14.16756013,157.8,157.76,6.33874239]
[1748825049416,1.6442,157.87,157.8,26.0]
[1748825049625,15.81176013,157.87,157.82,14.16756013]
[1748825049792,14.16756013,157.86,157.82,14.16756013]
[1748825050309,15.81176013,157.87,157.82,14.16756013]
[1748825050815,15.81176013,157.87,157.83,6.33593106]
[1748825052223,1.6442,157.87,157.83,20.50349119]
[1748825053195,15.81176013,157.87,157.83,6.33593106]
[1748825053395,14.16756013,157.86,157.83,6.33593106]
[1748825053924,14.16756013,157.86,157.77,18.64964886]
[1748825053925,14.16756013,157.84,157.76,15.8460305]
[1748825054233,14.16756013,157.84,157.77,14.16756013]
[1748825054234,14.16756013,157.82,157.77,14.16756013]
[1748825054791,14.16756013,157.82,157.78,6.3379389]
[1748825054995,49.72,157.84,157.78,6.3379389]
[1748825055211,14.16756013,157.83,157.78,20.50549903]
[1748825057620,148.9,157.82,157.78,20.50549903]
[1748825058212,163.06756013,157.81,157.78,6.3379389]
[1748825058560,163.06756013,157.81,157.77,6.33824104]
[1748825058561,14.16756013,157.8,157.77,6.33824104]
[1748825059096,14.16756013,157.8,157.76,14.16756013]
[1748825059406,163.06756013,157.81,157.76,14.16756013]
[1748825060323,148.9,157.81,157.8,14.16756013]
[1748825062100,148.9,157.81,157.8,6.33713561]
[1748825062812,148.9,157.81,157.8,20.50469574]
[1748825064032,10.38,157.84,157.8,36.34753477]
[1748825064212,10.38,157.84,157.82,14.16756013]
[1748825064413,10.38,157.84,157.83,14.16756013]
[1748825064613,148.9,157.86,157.83,14.16756013]
[1748825065135,148.9,157.86,157.82,14.16756013]
[1748825066830,148.9,157.86,157.8,81.18283903]
[1748825067036,163.06756013,157.86,157.81,14.16756013]
[1748825067215,163.06756013,157.86,157.81,20.50429417]
[1748825068333,14.16756013,157.85,157.81,6.33673404]
[1748825068516,14.16756013,157.83,157.8,6.33698484]
[1748825068723,14.16756013,157.84,157.8,6.33698484]
[1748825070431,14.16756013,157.83,157.8,6.33698484]
[1748825071707,39.32,157.85,157.8,6.33698484]
[1748825071907,39.32,157.85,157.8,20.50454497]
[1748825072141,53.48756013,157.85,157.8,20.50454497]
[1748825072513,53.48756013,157.85,157.8,6.33698484]
[1748825072720,53.48756013,157.85,157.8,20.50454497]
[1748825073223,14.16756013,157.85,157.8,20.50454497]
[1748825073433,202.38756013,157.86,157.81,14.16756013]
[1748825074626,163.06756013,157.86,157.82,6.33633253]
[1748825076631,148.9,157.86,157.82,20.50389266]
[1748825077143,148.9,157.86,157.83,14.16756013]
[1748825077438,148.9,157.86,157.84,14.16756013]
[1748825078543,148.9,157.86,157.85,6.33512828]
[1748825082546,148.9,157.86,157.83,14.16756013]
[1748825084827,148.9,157.86,157.84,6.33552965]
[1748825085954,148.9,157.86,157.84,20.50308978]
[1748825086457,10.38,157.88,157.85,14.16756013]
[1748825086663,10.38,157.88,157.86,14.16756013]
[1748825087037,10.38,157.88,157.87,6.33432571]
[1748825087352,148.9,157.9,157.87,20.50188584]
[1748825087560,148.9,157.9,157.88,14.16756013]
[1748825088132,148.9,157.9,157.87,20.50188584]
[1748825090654,148.9,157.9,157.88,14.16756013]
[1748825091442,18.31110282,157.91,157.89,14.16756013]
[1748825091644,10.36,157.92,157.9,14.16756013]
[1748825092045,10.36,157.92,157.89,14.16756013]
[1748825092367,10.36,157.92,157.87,39.32]
[1748825092673,14.16756013,157.88,157.83,30.0065272]
[1748825093149,14.16756013,157.89,157.84,14.16756013]
[1748825093546,148.9,157.91,157.85,14.16756013]
[1748825093547,14.16756013,157.9,157.85,14.16756013]
[1748825093747,163.06756013,157.91,157.86,14.16756013]
[1748825094669,163.06756013,157.91,157.87,6.33432571]
[1748825097773,14.16756013,157.9,157.87,6.33432571]
[1748825098267,163.06756013,157.91,157.87,6.33432571]
[1748825098470,148.9,157.91,157.88,14.16756013]
[1748825098879,148.9,157.91,157.87,20.50188584]
[1748825101159,163.06756013,157.91,157.87,6.33432571]
[1748825101368,148.9,157.91,157.87,20.50188584]
[1748825101748,148.9,157.91,157.9,14.16756013]
[1748825102379,148.9,157.91,157.89,14.16756013]
[1748825103170,148.9,157.91,157.88,14.16756013]
[1748825103495,14.16756013,157.9,157.86,6.33472697]
[1748825103681,148.9,157.9,157.82,22.17716385]
[1748825103858,148.9,157.9,157.86,14.16756013]
[1748825104253,163.06756013,157.9,157.85,14.16756013]
[1748825105055,14.16756013,157.89,157.84,14.16756013]
[1748825105379,14.16756013,157.89,157.85,6.33512828]
[1748825107259,14.16756013,157.89,157.84,20.50307463]
[1748825107576,14.16756013,157.88,157.84,6.3355145]
[1748825107771,14.16756013,157.86,157.82,32.33620832]
[1748825108162,14.16756013,157.86,157.82,6.33620832]
[1748825108369,24.52756013,157.86,157.82,6.33620832]
[1748825109161,10.36,157.86,157.82,20.50376845]
[1748825109357,24.52756013,157.86,157.82,6.33620832]
[1748825112578,10.36,157.86,157.83,14.16756013]
[1748825113557,10.36,157.86,157.84,6.33552965]
[1748825114381,148.9,157.89,157.85,14.16756013]
[1748825115573,148.9,157.89,157.86,6.33472697]
[1748825115793,163.06756013,157.89,157.86,6.33472697]
[1748825120371,163.06756013,157.89,157.85,6.33512828]
[1748825120572,14.16756013,157.86,157.84,6.33538629]
[1748825120760,14.16756013,157.86,157.83,6.33582685]
[1748825120961,148.9,157.89,157.84,14.16756013]
[1748825121275,14.16756013,157.88,157.84,14.16756013]
[1748825121787,163.06756013,157.89,157.85,14.16756013]
[1748825122290,163.06756013,157.89,157.84,14.16756013]
[1748825122479,14.16756013,157.88,157.85,6.33512828]
[1748825122674,14.16756013,157.86,157.81,59.80429417]
[1748825123980,14.16756013,157.86,157.81,75.64612928]
[1748825124182,14.16756013,157.87,157.82,14.16756013]
[1748825124894,14.16756013,157.87,157.83,14.16756013]
[1748825126070,14.16756013,157.87,157.83,6.33593106]
[1748825131190,14.16756013,157.87,157.82,20.50382942]
[1748825133080,14.16756013,157.83,157.79,6.33753723]
[1748825133280,14.16756013,157.82,157.79,6.33753723]
[1748825133482,173.40756013,157.82,157.79,6.33753723]
[1748825133689,173.40756013,157.82,157.77,6.33834062]
[1748825134000,14.16756013,157.81,157.77,6.33834062]
[1748825136590,173.40756013,157.82,157.77,20.50590075]
[1748825137485,14.16756013,157.81,157.77,20.50590075]
[1748825138378,14.16756013,157.8,157.76,46.50624658]
[1748825138617,14.16756013,157.8,157.76,6.33868645]
[1748825138909,14.16756013,157.8,157.76,20.50624658]
[1748825139288,159.24,157.82,157.78,14.16756013]
[1748825139785,159.24,157.82,157.79,14.16756013]
[1748825140091,159.24,157.82,157.78,14.16756013]
[1748825140623,159.24,157.82,157.79,6.33753723]
[1748825140990,159.24,157.82,157.79,20.50509736]
[1748825143305,1.5251,157.85,157.81,14.16756013]
[1748825143306,15.69266013,157.85,157.81,14.16756013]
[1748825143907,14.16756013,157.82,157.74,6.33954608]
[1748825144113,14.16756013,157.79,157.74,20.50710621]
[1748825144407,14.16756013,157.76,157.73,6.33994801]
[1748825144609,14.16756013,157.76,157.73,32.33994801]
[1748825145683,14.16756013,157.74,157.68,6.34195839]
[1748825145886,14.16756013,157.7,157.65,14.16756013]
[1748825146112,160.8906,157.73,157.65,6.34316523]
[1748825146113,14.16756013,157.68,157.65,6.34316523]
[1748825146486,14.16756013,157.68,157.64,6.34348931]
[1748825146696,14.16756013,157.65,157.6,14.16756013]
[1748825146889,14.16756013,157.65,157.61,26.0]
[1748825147098,10.34,157.67,157.61,26.0]
[1748825147099,14.16756013,157.66,157.61,62.37427289]
[1748825147790,24.50756013,157.67,157.62,14.16756013]
[1748825148007,10.34,157.67,157.62,14.16756013]
[1748825148311,10.34,157.67,157.63,14.16756013]
[1748825148645,24.50756013,157.67,157.64,6.34356762]
[1748825148791,10.34,157.67,157.65,14.16756013]
[1748825149301,10.34,157.67,157.64,6.34356762]
[1748825149701,10.34,157.67,157.64,20.51112775]
[1748825151710,10.34,157.67,157.65,14.16756013]
[1748825152298,10.34,157.67,157.64,20.51112775]
[1748825152711,10.34,157.67,157.64,6.34356762]
[1748825153033,14.16756013,157.65,157.64,6.34356762]
[1748825153708,10.34,157.67,157.63,14.16756013]
[1748825155218,10.34,157.67,157.64,14.16756013]
[1748825155713,10.34,157.67,157.65,6.34316523]
[1748825157010,148.9,157.69,157.66,14.16756013]
[1748825157213,148.9,157.69,157.65,22.20107832]
[1748825157404,148.9,157.69,157.65,36.36863845]
[1748825157714,163.06756013,157.69,157.65,22.20107832]
[1748825158219,14.16756013,157.68,157.65,22.20107832]
[1748825159100,14.16756013,157.68,157.65,15.85791309]
[1748825160834,14.16756013,157.67,157.64,6.34356762]
[1748825161010,14.16756013,157.66,157.62,22.20474535]
[1748825161394,14.16756013,157.67,157.63,14.16756013]
[1748825162003,14.16756013,157.68,157.64,14.16756013]
[1748825163226,14.16756013,157.68,157.65,6.34316523]
[1748825163604,148.9,157.69,157.67,14.16756013]
[1748825164815,10.36,157.71,157.68,14.16756013]
[1748825165116,10.36,157.71,157.69,14.16756013]
[1748825165505,10.36,157.71,157.68,14.16756013]
[1748825165926,10.36,157.71,157.65,93.21690451]
[1748825166224,10.36,157.71,157.67,14.16756013]
[1748825167128,10.36,157.71,157.68,6.34195839]
[1748825167414,14.16756013,157.7,157.68,6.34195839]
[1748825168808,14.16756013,157.7,157.67,6.34236062]
[1748825169523,24.52756013,157.71,157.67,6.34236062]
[1748825171423,14.16756013,157.7,157.67,6.34236062]
[1748825171631,14.16756013,157.68,157.63,6.34397005]
[1748825171810,14.16756013,157.67,157.63,6.34397005]
[1748825172010,14.16756013,157.67,157.63,20.51153018]
[1748825172619,14.16756013,157.67,157.63,6.34397005]
[1748825173633,14.16756013,157.67,157.63,14.16756013]
[1748825173937,14.16756013,157.67,157.62,6.34437254]
[1748825173938,14.16756013,157.67,157.62,20.51193267]
[1748825174526,14.16756013,157.65,157.6,53.46756013]
[1748825175435,24.50756013,157.65,157.61,6.34477507]
[1748825177756,10.34,157.65,157.62,14.16756013]
[1748825177957,24.50756013,157.65,157.6,20.51273779]
[1748825178127,24.50756013,157.65,157.6,59.81273779]
[1748825178463,24.50756013,157.65,157.61,14.16756013]
[1748825179139,24.50756013,157.65,157.62,6.34437254]
[1748825181334,24.50756013,157.65,157.61,6.34477507]
[1748825183137,24.50756013,157.65,157.59,41.86381604]
[1748825183138,14.16756013,157.62,157.59,6.34527747]
[1748825183579,14.16756013,157.63,157.59,6.34527747]
[1748825184574,14.16756013,157.64,157.59,14.16756013]
[1748825184737,10.34,157.65,157.59,14.16756013]
[1748825184942,14.16756013,157.63,157.59,14.16756013]
[1748825186277,14.16756013,157.63,157.58,6.34598299]
[1748825186480,10.34,157.65,157.58,20.51354312]
[1748825186639,14.16756013,157.63,157.59,14.16756013]
[1748825187642,14.16756013,157.63,157.6,6.34517766]
[1748825188546,14.16756013,157.61,157.58,6.34563443]
[1748825189576,14.16756013,157.62,157.58,20.51319456]
[1748825190179,14.16756013,157.64,157.59,14.16756013]
[1748825190679,14.16756013,157.63,157.59,14.16756013]
[1748825191678,14.16756013,157.62,157.58,62.37815204]
[1748825191860,14.16756013,157.61,157.58,48.21059191]
[1748825192060,14.16756013,157.61,157.55,39.3]
[1748825192061,14.16756013,157.6,157.56,6.34678852]
[1748825192271,14.16756013,157.6,157.56,20.51434865]
[1748825193188,14.16756013,157.6,157.56,36.38131996]
[1748825193478,14.16756013,157.61,157.56,36.38131996]
[1748825193850,14.16756013,157.6,157.56,36.38131996]
[1748825194275,14.16756013,157.61,157.56,36.38131996]
[1748825195348,14.16756013,157.61,157.57,14.16756013]
[1748825195553,14.16756013,157.61,157.56,22.21375983]
[1748825195554,14.16756013,157.62,157.58,14.16756013]
[1748825196277,14.16756013,157.62,157.57,14.16756013]
[1748825197272,14.16756013,157.62,157.58,6.34598299]
[1748825198592,163.06756013,157.63,157.58,36.3785006]
[1748825198874,10.34,157.65,157.62,14.16756013]
[1748825199068,10.34,157.65,157.63,14.16756013]
[1748825199376,10.34,157.65,157.64,6.34356762]
[1748825199583,10.34,157.65,157.64,20.51112775]
[1748825199882,148.9,157.68,157.64,20.51112775]
[1748825200182,148.9,157.68,157.66,14.16756013]
[1748825200757,148.9,157.68,157.66,20.51017343]
[1748825201061,148.9,157.68,157.65,6.34304941]
[1748825204098,21.44317336,157.69,157.67,14.16756013]
[1748825204259,21.44317336,157.69,157.68,14.16756013]
[1748825204586,21.44317336,157.69,157.67,14.16756013]
[1748825205774,21.44317336,157.69,157.68,14.16756013]
[1748825206595,21.44317336,157.69,157.68,20.50951852]
[1748825206787,11.10317336,157.69,157.68,20.50951852]
[1748825207270,148.9,157.72,157.68,36.36441451]
[1748825207470,148.9,157.72,157.7,14.16756013]
[1748825208169,148.9,157.72,157.71,6.34075201]
[1748825209762,148.9,157.72,157.7,20.50871422]
[1748825210984,148.9,157.72,157.7,6.34115409]
[1748825211873,148.9,157.72,157.69,6.34146964]
[1748825212573,148.9,157.72,157.69,20.50902977]
[1748825212977,148.9,157.72,157.69,6.34146964]
[1748825213178,148.9,157.72,157.69,20.50902977]
[1748825213792,148.9,157.72,157.7,14.16756013]
[1748825213971,148.9,157.72,157.71,6.34075201]
[1748825214379,148.9,157.72,157.71,20.50831214]
[1748825215190,148.9,157.72,157.71,59.78831214]
[1748825215778,148.9,157.72,157.71,78.437961]
[1748825217481,10.34,157.77,157.71,94.28984103]
[1748825217789,10.34,157.77,157.75,14.16756013]
[1748825217992,10.34,157.77,157.74,14.16756013]
[1748825218298,10.34,157.77,157.75,6.33914421]
[1748825219199,10.34,157.77,157.76,14.16756013]
[1748825219394,10.34,157.77,157.75,20.50670434]
[1748825220085,10.34,157.77,157.73,14.16756013]
[1748825220286,14.16756013,157.76,157.71,20.50831214]
[1748825220498,14.16756013,157.74,157.71,6.34075201]
[1748825221000,163.06756013,157.75,157.71,6.34075201]
[1748825221206,163.06756013,157.75,157.71,20.50831214]
[1748825222300,14.16756013,157.74,157.71,6.34075201]
[1748825222500,163.06756013,157.75,157.71,6.34075201]
[1748825223179,148.9,157.75,157.72,14.16756013]
[1748825223681,148.9,157.75,157.71,20.50831214]
[1748825223983,163.06756013,157.75,157.71,6.34075201]
[1748825224907,148.9,157.75,157.71,20.50831214]
[1748825225486,163.06756013,157.75,157.71,6.34075201]
[1748825232014,148.9,157.75,157.73,14.16756013]
[1748825233712,148.9,157.75,157.74,6.33954608]
[1748825234417,148.9,157.75,157.73,6.33981729]
[1748825235489,163.06756013,157.75,157.7,40.16756013]
[1748825235695,163.06756013,157.75,157.71,14.16756013]
[1748825235904,163.06756013,157.75,157.71,20.50820549]
[1748825238521,163.06756013,157.75,157.71,6.34064536]
[1748825240236,14.16756013,157.73,157.68,14.16756013]
[1748825241508,14.16756013,157.73,157.69,6.34155621]
[1748825246406,14.16756013,157.72,157.67,14.16756013]
[1748825246615,14.16756013,157.7,157.66,6.3427629]
[1748825247213,14.16756013,157.69,157.66,6.3427629]
[1748825248805,14.16756013,157.69,157.65,6.34316523]
[1748825249439,16.66084108,157.71,157.65,6.34316523]
[1748825249440,14.16756013,157.68,157.65,6.34316523]
[1748825249639,14.16756013,157.67,157.64,6.34343624]
[1748825249928,14.16756013,157.66,157.63,6.34387461]
[1748825251141,14.16756013,157.66,157.62,6.34437254]
[1748825251532,14.16756013,157.67,157.62,20.51193267]